bitfinex-derivatives/quotes_BTCF0:USTF0_20250629
["timestamp","ask_amount","ask_price","bid_price","bid_amount"]
[1751167696100,1.77126294,107370.0,107360.0,0.002]
[1751167700404,1.89890294,107370.0,107360.0,0.002]
[1751167705907,1.3836618,107370.0,107360.0,0.002]
[1751167706107,1.89890294,107370.0,107360.0,0.02994618]
[1751167718922,1.53810294,107370.0,107360.0,0.02994618]
[1751167719124,1.89890294,107370.0,107360.0,0.02994618]
[1751167737231,1.53810294,107370.0,107360.0,0.02994618]
[1751167737436,1.89890294,107370.0,107360.0,0.02994618]
[1751167746149,1.89890294,107370.0,107360.0,0.002]
[1751167747149,1.53810294,107370.0,107360.0,0.002]
[1751167747449,1.89890294,107370.0,107360.0,0.002]
[1751167749555,1.53810294,107370.0,107360.0,0.002]
[1751167749752,1.89890294,107370.0,107360.0,0.002]
[1751167753956,1.53810294,107370.0,107360.0,0.002]
[1751167754159,1.89890294,107370.0,107360.0,0.002]
[1751167756160,1.89890294,107370.0,107360.0,0.02994618]
[1751167759055,1.53810294,107370.0,107360.0,0.02994618]
[1751167759356,1.89890294,107370.0,107360.0,0.02994618]
[1751167770276,1.53810294,107370.0,107360.0,0.02994618]
[1751167770476,1.89890294,107370.0,107360.0,0.02994618]
[1751167772183,1.53810294,107370.0,107360.0,0.02994618]
[1751167772483,1.89890294,107370.0,107360.0,0.02994618]
[1751167786295,1.89890294,107370.0,107360.0,0.002]
[1751167788996,1.53810294,107370.0,107360.0,0.002]
[1751167789201,1.89890294,107370.0,107360.0,0.002]
[1751167793102,1.53810294,107370.0,107360.0,0.002]
[1751167793402,1.89890294,107370.0,107360.0,0.002]
[1751167795902,1.53810294,107370.0,107360.0,0.002]
[1751167796104,1.89890294,107370.0,107360.0,0.02994618]
[1751167802606,1.53810294,107370.0,107360.0,0.02994618]
[1751167802900,1.89890294,107370.0,107360.0,0.02994618]
[1751167805908,1.53810294,107370.0,107360.0,0.02994618]
[1751167806209,1.89890294,107370.0,107360.0,0.02994618]
[1751167809309,1.89936748,107370.0,107360.0,0.02994618]
[1751167812518,1.89936748,107370.0,107360.0,0.02894618]
[1751167813017,1.89936748,107370.0,107360.0,0.02794618]
[1751167816622,1.38412634,107370.0,107360.0,0.02794618]
[1751167816819,1.89936748,107370.0,107360.0,0.02794618]
[1751167823930,1.53856748,107370.0,107360.0,0.02794618]
[1751167824237,1.89936748,107370.0,107360.0,0.02794618]
[1751167830234,1.53856748,107370.0,107360.0,0.02794618]
[1751167830428,1.89936748,107370.0,107360.0,0.02794618]
[1751167835138,1.53856748,107370.0,107360.0,0.02794618]
[1751167835432,1.89936748,107370.0,107360.0,0.02794618]
[1751167836230,0.1489795,107360.0,107350.0,0.48424618]
[1751167836428,0.79190064,107360.0,107350.0,0.48424618]
[1751167837933,0.79190064,107360.0,107350.0,0.12344618]
[1751167838130,0.79190064,107360.0,107350.0,0.48424618]
[1751167838835,0.79190064,107360.0,107350.0,0.48524618]
[1751167839036,0.79190064,107360.0,107350.0,0.48624618]
[1751167841342,0.79190064,107360.0,107350.0,0.52348971]
[1751167841935,0.79190064,107360.0,107350.0,0.67248311]
[1751167842941,0.79190064,107360.0,107350.0,0.52348971]
[1751167843442,0.79190064,107360.0,107350.0,0.67248311]
[1751167846149,0.79190064,107360.0,107350.0,0.70029684]
[1751167849147,0.79190064,107360.0,107350.0,0.33949684]
[1751167849354,0.79190064,107360.0,107350.0,0.70029684]
[1751167854960,0.79190064,107360.0,107350.0,0.33949684]
[1751167855163,0.79190064,107360.0,107350.0,0.70029684]
[1751167857463,0.2766595,107360.0,107350.0,0.70029684]
[1751167857663,0.79190064,107360.0,107350.0,0.70029684]
[1751167857858,0.82280064,107360.0,107350.0,0.70029684]
[1751167860074,0.85560064,107360.0,107350.0,0.70029684]
[1751167864280,0.85560064,107360.0,107350.0,0.33949684]
[1751167864579,0.85560064,107360.0,107350.0,0.70029684]
[1751167869187,0.85560064,107360.0,107350.0,0.33949684]
[1751167869384,0.85560064,107360.0,107350.0,0.70029684]
[1751167870887,0.85560064,107360.0,107350.0,0.33949684]
[1751167871084,0.85560064,107360.0,107350.0,0.70029684]
[1751167875091,0.85560064,107360.0,107350.0,0.33949684]
[1751167875391,0.85560064,107360.0,107350.0,0.70029684]
[1751167877279,0.85560064,107360.0,107350.0,0.66949684]
[1751167878194,0.3403595,107360.0,107350.0,0.66949684]
[1751167878386,0.85560064,107360.0,107350.0,0.66949684]
[1751167883096,0.85560064,107360.0,107350.0,0.30869684]
[1751167883296,0.85560064,107360.0,107350.0,0.66949684]
[1751167886198,0.85560064,107360.0,107350.0,0.64168954]
[1751167887701,0.3403595,107360.0,107350.0,0.64168954]
[1751167888002,0.85560064,107360.0,107350.0,0.64168954]
[1751167890203,0.85560064,107360.0,107350.0,0.49269614]
[1751167891405,0.85560064,107360.0,107350.0,0.64168954]
[1751167892304,0.85560064,107360.0,107350.0,0.28088954]
[1751167892507,0.85560064,107360.0,107350.0,0.64168954]
[1751167894213,0.85560064,107360.0,107350.0,0.49269614]
[1751167894907,0.85560064,107360.0,107350.0,0.64168954]
[1751167896001,0.85560064,107360.0,107350.0,0.28088954]
[1751167896206,0.85560064,107360.0,107350.0,0.66949684]
[1751167899714,0.85560064,107360.0,107350.0,0.52050344]
[1751167912715,0.85560064,107360.0,107350.0,0.66949684]
[1751167913224,0.85560064,107360.0,107350.0,0.52050344]
[1751167921627,0.85560064,107360.0,107350.0,0.66949684]
[1751167926230,0.85560064,107360.0,107350.0,0.64168766]
[1751167927230,0.85560064,107360.0,107350.0,0.28088766]
[1751167927434,0.85560064,107360.0,107350.0,0.64168766]
[1751167929634,0.85560064,107360.0,107350.0,0.28088766]
[1751167929834,0.85560064,107360.0,107350.0,0.64168766]
[1751167930544,0.85560064,107360.0,107350.0,0.49269426]
[1751167930740,0.85560064,107360.0,107350.0,0.46029426]
[1751167936246,0.85560064,107360.0,107350.0,0.48810344]
[1751167937045,0.85560064,107360.0,107350.0,0.12730344]
[1751167937245,0.85560064,107360.0,107350.0,0.48810344]
[1751167938046,0.79190064,107360.0,107350.0,0.48810344]
[1751167938248,0.72512064,107360.0,107350.0,0.48810344]
[1751167939449,1.41256064,107360.0,107350.0,0.48810344]
[1751167939948,1.41256064,107360.0,107350.0,0.43234353]
[1751167941848,1.41256064,107360.0,107350.0,0.48810344]
[1751167944248,1.41256064,107360.0,107350.0,0.12730344]
[1751167944452,1.41256064,107360.0,107350.0,0.48810344]
[1751167952658,1.41256064,107360.0,107350.0,0.12730344]
[1751167952861,1.41256064,107360.0,107350.0,0.48810344]
[1751167953563,1.41256064,107360.0,107350.0,0.12730344]
[1751167953866,1.41256064,107360.0,107350.0,0.48810344]
[1751167962270,1.41256064,107360.0,107350.0,0.12730344]
[1751167962473,1.41256064,107360.0,107350.0,0.48810344]
[1751167965174,0.8973195,107360.0,107350.0,0.48810344]
[1751167965375,1.41256064,107360.0,107350.0,0.48810344]
[1751167974091,1.41256064,107360.0,107350.0,0.12730344]
[1751167974285,1.41256064,107360.0,107350.0,0.48810344]
[1751167974987,1.41256064,107360.0,107350.0,0.12730344]
[1751167975191,1.41256064,107360.0,107350.0,0.48810344]
[1751167976192,1.41256064,107360.0,107350.0,0.46029611]
[1751167986202,1.41256064,107360.0,107350.0,0.48810344]
[1751167987701,1.41256064,107360.0,107350.0,0.43234353]
[1751167988995,1.41256064,107360.0,107350.0,0.48810344]
[1751167998906,1.41256064,107360.0,107350.0,0.12730344]
[1751167999206,1.41256064,107360.0,107350.0,0.48810344]
[1751168000205,1.41256064,107360.0,107350.0,0.12730344]
[1751168000407,1.41256064,107360.0,107350.0,0.48810344]
[1751168002915,1.41256064,107360.0,107350.0,0.12730344]
[1751168003103,1.41256064,107360.0,107350.0,0.48810344]
[1751168007616,1.41256064,107360.0,107350.0,0.12730344]
[1751168007816,1.41256064,107360.0,107350.0,0.48810344]
[1751168008319,1.41256064,107360.0,107350.0,0.12730344]
[1751168008616,1.41256064,107360.0,107350.0,0.48810344]
[1751168016224,1.41256064,107360.0,107350.0,0.46029611]
[1751168020628,1.41256064,107360.0,107350.0,0.09949611]
[1751168020829,1.41256064,107360.0,107350.0,0.46029611]
[1751168024229,1.41256064,107360.0,107350.0,0.09949611]
[1751168024433,1.41256064,107360.0,107350.0,0.46029611]
[1751168025037,1.41256064,107360.0,107350.0,0.09949611]
[1751168025234,1.41256064,107360.0,107350.0,0.46029611]
[1751168026236,1.41256064,107360.0,107350.0,0.48810344]
[1751168027940,1.41256064,107360.0,107350.0,0.12730344]
[1751168028135,1.41256064,107360.0,107350.0,0.48810344]
[1751168029541,1.41256064,107360.0,107350.0,0.12730344]
[1751168029732,1.41256064,107360.0,107350.0,0.48810344]
[1751168030939,1.41256064,107360.0,107350.0,0.12730344]
[1751168031138,1.41256064,107360.0,107350.0,0.48810344]
[1751168037041,1.41256064,107360.0,107350.0,0.12730344]
[1751168037246,1.41256064,107360.0,107350.0,0.48810344]
[1751168042154,1.41256064,107360.0,107350.0,0.12730344]
[1751168042343,1.41256064,107360.0,107350.0,0.48810344]
[1751168044152,1.41256064,107360.0,107350.0,0.12730344]
[1751168044359,1.41256064,107360.0,107350.0,0.48810344]
[1751168046051,1.41256064,107360.0,107350.0,0.12730344]
[1751168046255,1.41256064,107360.0,107350.0,0.48810344]
[1751168061155,1.44466064,107360.0,107350.0,0.48810344]
[1751168065568,1.44466064,107360.0,107350.0,0.12730344]
[1751168065867,1.44466064,107360.0,107350.0,0.48810344]
[1751168066069,1.44466064,107360.0,107350.0,0.12730344]
[1751168066368,1.44466064,107360.0,107350.0,0.46029608]
[1751168074177,1.44466064,107360.0,107350.0,0.09949608]
[1751168074474,1.44466064,107360.0,107350.0,0.46029608]
[1751168076380,1.44466064,107360.0,107350.0,0.48810344]
[1751168077880,1.44466064,107360.0,107350.0,0.12730344]
[1751168078080,1.44466064,107360.0,107350.0,0.48810344]
[1751168081582,1.44466064,107360.0,107350.0,0.12730344]
[1751168081877,1.44466064,107360.0,107350.0,0.48810344]
[1751168083583,1.44466064,107360.0,107350.0,0.12730344]
[1751168083882,1.44466064,107360.0,107350.0,0.48810344]
[1751168084283,1.44466064,107360.0,107350.0,0.12730344]
[1751168084484,1.44466064,107360.0,107350.0,0.48810344]
[1751168087588,1.44466064,107360.0,107350.0,0.12730344]
[1751168087789,1.44466064,107360.0,107350.0,0.48810344]
[1751168087984,1.44466064,107360.0,107350.0,0.12730344]
[1751168088191,1.44466064,107360.0,107350.0,0.48810344]
[1751168090089,1.44466064,107360.0,107350.0,0.12730344]
[1751168090293,1.44466064,107360.0,107350.0,0.48810344]
[1751168090790,1.44466064,107360.0,107350.0,0.43234353]
[1751168092389,1.44466064,107360.0,107350.0,0.48810344]
[1751168092991,1.44466064,107360.0,107350.0,0.12730344]
[1751168093190,1.44466064,107360.0,107350.0,0.48810344]
[1751168095289,1.44466064,107360.0,107350.0,0.12730344]
[1751168095593,1.44466064,107360.0,107350.0,0.48810344]
[1751168096294,1.44466064,107360.0,107350.0,0.43234353]
[1751168096592,1.44466064,107360.0,107350.0,0.48810344]
[1751168099296,0.9294195,107360.0,107350.0,0.48810344]
[1751168099487,1.44466064,107360.0,107350.0,0.48810344]
[1751168104998,1.44466064,107360.0,107350.0,0.12730344]
[1751168105297,1.44466064,107360.0,107350.0,0.48810344]
[1751168105697,1.44466064,107360.0,107350.0,0.43234353]
[1751168106199,1.44466064,107360.0,107350.0,0.07154353]
[1751168106398,1.44466064,107360.0,107350.0,0.42305023]
[1751168106596,1.44466064,107360.0,107350.0,0.06225023]
[1751168106802,1.44466064,107360.0,107350.0,0.42305023]
[1751168109100,1.44466064,107360.0,107350.0,0.06225023]
[1751168109308,1.44466064,107360.0,107350.0,0.42305023]
[1751168113402,1.44466064,107360.0,107350.0,0.06225023]
[1751168113600,1.44466064,107360.0,107350.0,0.42305023]
[1751168116301,1.44466064,107360.0,107350.0,0.48810344]
[1751168123210,1.44466064,107360.0,107350.0,0.12730344]
[1751168123406,1.44466064,107360.0,107350.0,0.48810344]
[1751168125212,1.44466064,107360.0,107350.0,0.12730344]
[1751168125413,1.44466064,107360.0,107350.0,0.48810344]
[1751168128020,1.44466064,107360.0,107350.0,0.12730344]
[1751168128314,1.44466064,107360.0,107350.0,0.48810344]
[1751168130416,1.44466064,107360.0,107350.0,0.43234353]
[1751168130619,1.70228121,107360.0,107350.0,0.39075282]
[1751168130817,2.06308121,107360.0,107350.0,0.02995282]
[1751168131017,2.06308121,107360.0,107350.0,0.002]
[1751168131219,2.06308121,107360.0,107340.0,0.06519635]
[1751168131220,1.6489933,107350.0,107340.0,0.06519635]
[1751168131523,0.1490072,107340.0,107330.0,0.03724353]
[1751168131710,2.06718891,107340.0,107330.0,0.05151031]
[1751168131915,2.06718891,107340.0,107330.0,0.03724353]
[1751168132723,0.1490211,107330.0,107320.0,0.45473519]
[1751168132918,0.72916224,107330.0,107320.0,0.46902599]
[1751168133422,0.72916224,107330.0,107320.0,0.45473519]
[1751168134623,0.72916224,107330.0,107320.0,0.45773519]
[1751168135225,1.41828224,107330.0,107320.0,0.45773519]
[1751168136023,1.42774128,107330.0,107320.0,0.45773519]
[1751168136626,1.50152248,107330.0,107320.0,0.45773519]
[1751168137127,1.42774128,107330.0,107320.0,0.45773519]
[1751168137520,1.42774128,107330.0,107320.0,0.46173519]
[1751168139526,1.17008071,107330.0,107320.0,0.46173519]
[1751168139727,1.17008071,107330.0,107320.0,0.49283519]
[1751168140228,1.17008071,107330.0,107320.0,0.43707528]
[1751168141622,1.17008071,107330.0,107320.0,0.39983175]
[1751168142027,1.24629991,107330.0,107320.0,0.39983175]
[1751168143029,1.50392048,107330.0,107320.0,0.39983175]
[1751168161340,1.50392048,107330.0,107320.0,0.41428695]
[1751168162241,1.50392048,107330.0,107320.0,0.38318695]
[1751168162439,1.53412048,107330.0,107320.0,0.38318695]
[1751168163345,0.1490349,107320.0,107310.0,0.45984353]
[1751168163536,0.72827604,107320.0,107310.0,0.42864353]
[1751168163737,0.72827604,107320.0,107310.0,0.3914]
[1751168164638,0.72827604,107320.0,107310.0,0.3974]
[1751168164838,0.72827604,107320.0,107310.0,0.4014]
[1751168166346,0.72827604,107320.0,107310.0,0.43864353]
[1751168167537,0.72827604,107320.0,107310.0,0.40804353]
[1751168168243,0.75877604,107320.0,107310.0,0.40804353]
[1751168179455,0.75877604,107320.0,107310.0,0.404]
[1751168182559,0.72827604,107320.0,107310.0,0.404]
[1751168184059,0.72827604,107320.0,107310.0,0.0432]
[1751168184259,0.72827604,107320.0,107310.0,0.404]
[1751168187961,0.72827604,107320.0,107310.0,0.0432]
[1751168188163,0.72827604,107320.0,107310.0,0.404]
[1751168190863,0.85675604,107320.0,107310.0,0.404]
[1751168191366,0.85675604,107320.0,107310.0,0.43193695]
[1751168196362,0.85675604,107320.0,107310.0,0.404]
[1751168196965,0.85675604,107320.0,107310.0,0.0432]
[1751168197167,0.85675604,107320.0,107310.0,0.404]
[1751168197562,0.85675604,107320.0,107310.0,0.0432]
[1751168197868,0.85675604,107320.0,107310.0,0.404]
[1751168199161,0.85675604,107320.0,107310.0,0.0432]
[1751168199364,0.85675604,107320.0,107310.0,0.404]
[1751168202568,0.85675604,107320.0,107310.0,0.0432]
[1751168202769,0.85675604,107320.0,107310.0,0.404]
[1751168203571,0.85675604,107320.0,107310.0,0.0432]
[1751168203763,0.85675604,107320.0,107310.0,0.404]
[1751168206376,0.85675604,107320.0,107310.0,0.43193695]
[1751168206564,0.85675604,107320.0,107310.0,0.07113695]
[1751168206875,0.85675604,107320.0,107310.0,0.43193695]
[1751168207174,0.85675604,107320.0,107310.0,0.07113695]
[1751168207369,0.85675604,107320.0,107310.0,0.43193695]
[1751168209270,0.85675604,107320.0,107310.0,0.07113695]
[1751168209476,0.85675604,107320.0,107310.0,0.46918048]
[1751168213879,0.85675604,107320.0,107310.0,0.10838048]
[1751168214082,0.85675604,107320.0,107310.0,0.46918048]
[1751168216276,0.85675604,107320.0,107310.0,0.10838048]
[1751168216581,0.85675604,107320.0,107310.0,0.46918048]
[1751168222080,0.85675604,107320.0,107310.0,0.10838048]
[1751168222382,0.85675604,107320.0,107310.0,0.46918048]
[1751168225091,0.85675604,107320.0,107310.0,0.10838048]
[1751168225285,0.85675604,107320.0,107310.0,0.46918048]
[1751168227985,0.85675604,107320.0,107310.0,0.10838048]
[1751168228190,0.85675604,107320.0,107310.0,0.46918048]
[1751168230590,0.85675604,107320.0,107310.0,0.10838048]
[1751168230795,0.85675604,107320.0,107310.0,0.46918048]
[1751168236304,0.85675604,107320.0,107310.0,0.43193695]
[1751168236503,0.85675604,107320.0,107310.0,0.46918048]
[1751168241609,0.85675604,107320.0,107310.0,0.10838048]
[1751168241907,0.85675604,107320.0,107310.0,0.46918048]
[1751168244311,0.85675604,107320.0,107310.0,0.10838048]
[1751168244513,0.85675604,107320.0,107310.0,0.46918048]
[1751168246510,0.85675604,107320.0,107310.0,0.43193695]
[1751168256412,0.85675604,107320.0,107310.0,0.46918048]
[1751168260217,0.85675604,107320.0,107310.0,0.10838048]
[1751168260516,0.85675604,107320.0,107310.0,0.46918048]
[1751168262219,0.85675604,107320.0,107310.0,0.10838048]
[1751168262520,0.85675604,107320.0,107310.0,0.46918048]
[1751168263119,0.85675604,107320.0,107310.0,0.10838048]
[1751168263314,0.85675604,107320.0,107310.0,0.46918048]
[1751168264220,0.85675604,107320.0,107310.0,0.10838048]
[1751168264419,0.85675604,107320.0,107310.0,0.46918048]
[1751168265618,0.85675604,107320.0,107310.0,0.10838048]
[1751168265821,0.85675604,107320.0,107310.0,0.46918048]
[1751168266914,0.85675604,107320.0,107310.0,0.10838048]
[1751168267115,0.85675604,107320.0,107310.0,0.46918048]
[1751168267622,0.85675604,107320.0,107310.0,0.10838048]
[1751168267824,0.85675604,107320.0,107310.0,0.46918048]
[1751168268122,0.85675604,107320.0,107310.0,0.10838048]
[1751168268424,0.85675604,107320.0,107310.0,0.46918048]
[1751168269221,0.85675604,107320.0,107310.0,0.10838048]
[1751168269423,0.85675604,107320.0,107310.0,0.46918048]
[1751168273027,0.85675604,107320.0,107310.0,0.10838048]
[1751168273226,0.85675604,107320.0,107310.0,0.46918048]
[1751168274323,0.85675604,107320.0,107310.0,0.10838048]
[1751168274529,0.85675604,107320.0,107310.0,0.46918048]
[1751168276021,0.85675604,107320.0,107310.0,0.10838048]
[1751168276220,0.85675604,107320.0,107310.0,0.46918048]
[1751168279929,0.85675604,107320.0,107310.0,0.10838048]
[1751168280130,0.85675604,107320.0,107310.0,0.46918048]
[1751168280329,0.85675604,107320.0,107310.0,0.10838048]
[1751168280629,0.85675604,107320.0,107310.0,0.46918048]
[1751168282229,0.85675604,107320.0,107310.0,0.43193695]
[1751168282431,0.85675604,107320.0,107310.0,0.46918048]
[1751168283030,0.85675604,107320.0,107310.0,0.46518048]
[1751168283232,0.85975604,107320.0,107310.0,0.42793695]
[1751168283432,0.86275604,107320.0,107310.0,0.42193695]
[1751168285835,0.85975604,107320.0,107310.0,0.42193695]
[1751168286036,0.86175604,107320.0,107310.0,0.42193695]
[1751168289937,0.86175604,107320.0,107310.0,0.06113695]
[1751168290544,0.86175604,107320.0,107310.0,0.42193695]
[1751168291542,0.86175604,107320.0,107310.0,0.06113695]
[1751168291739,0.86175604,107320.0,107310.0,0.42193695]
[1751168293444,0.89355604,107320.0,107310.0,0.42193695]
[1751168293637,1.15117661,107320.0,107310.0,0.42193695]
[1751168296437,1.15117661,107320.0,107310.0,0.394]
[1751168297145,1.15117661,107320.0,107310.0,0.0332]
[1751168297347,1.15117661,107320.0,107310.0,0.394]
[1751168298552,1.15117661,107320.0,107310.0,0.06113695]
[1751168298847,1.15117661,107320.0,107310.0,0.42193695]
[1751168302549,1.15117661,107320.0,107310.0,0.06113695]
[1751168302850,1.15117661,107320.0,107310.0,0.42193695]
[1751168303651,1.15117661,107320.0,107310.0,0.06113695]
[1751168303849,1.15117661,107320.0,107310.0,0.42193695]
[1751168305046,1.15117661,107320.0,107310.0,0.06113695]
[1751168305244,1.15117661,107320.0,107310.0,0.42193695]
[1751168307153,1.15117661,107320.0,107310.0,0.06113695]
[1751168307353,1.15117661,107320.0,107310.0,0.42193695]
[1751168308554,1.15117661,107320.0,107310.0,0.06113695]
[1751168308757,1.15117661,107320.0,107310.0,0.42193695]
[1751168312256,1.15117661,107320.0,107310.0,0.45918048]
[1751168313557,1.15117661,107320.0,107310.0,0.09838048]
[1751168313761,1.15117661,107320.0,107310.0,0.45918048]
[1751168313952,1.15117661,107320.0,107310.0,0.09838048]
[1751168314258,1.15117661,107320.0,107310.0,0.45918048]
[1751168314558,1.15117661,107320.0,107310.0,0.09838048]
[1751168314858,1.15117661,107320.0,107310.0,0.45918048]
[1751168316260,1.15117661,107320.0,107310.0,0.42193695]
[1751168316566,1.15117661,107320.0,107310.0,0.06113695]
[1751168316865,1.15117661,107320.0,107310.0,0.42193695]
[1751168317160,1.02269661,107320.0,107310.0,0.42193695]
[1751168317360,1.71117661,107320.0,107310.0,0.42193695]
[1751168322160,1.71117661,107320.0,107310.0,0.06113695]
[1751168322361,1.71117661,107320.0,107310.0,0.42193695]
[1751168324062,1.71117661,107320.0,107310.0,0.06113695]
[1751168324264,1.71117661,107320.0,107310.0,0.42193695]
[1751168325363,1.02269661,107320.0,107310.0,0.42193695]
[1751168325561,1.71117661,107320.0,107310.0,0.42193695]
[1751168327565,1.71117661,107320.0,107310.0,0.06113695]
[1751168327861,1.71117661,107320.0,107310.0,0.42193695]
[1751168328163,1.71117661,107320.0,107310.0,0.06113695]
[1751168328463,1.71117661,107320.0,107310.0,0.42193695]
[1751168331962,1.71117661,107320.0,107310.0,0.06113695]
[1751168332164,1.71117661,107320.0,107310.0,0.42193695]
[1751168340078,1.71117661,107320.0,107310.0,0.06113695]
[1751168340376,1.71117661,107320.0,107310.0,0.42193695]
[1751168340779,1.71117661,107320.0,107310.0,0.38873695]
[1751168342680,1.71117661,107320.0,107310.0,0.3608]
[1751168343579,0.1490488,107310.0,107300.0,0.16008048]
[1751168343880,0.68131997,107310.0,107300.0,0.52050757]
[1751168345685,0.68231997,107310.0,107300.0,0.52050757]
[1751168346586,0.68231997,107310.0,107300.0,0.54833053]
[1751168348185,0.68231997,107310.0,107300.0,0.18753053]
[1751168348386,0.68231997,107310.0,107300.0,0.54833053]
[1751168349090,0.68231997,107310.0,107300.0,0.18753053]
[1751168349289,0.68231997,107310.0,107300.0,0.54833053]
[1751168351091,0.68231997,107310.0,107300.0,0.52052718]
[1751168351092,0.74611997,107310.0,107300.0,0.52052718]
[1751168354095,0.74611997,107310.0,107300.0,0.15972718]
[1751168354390,0.74611997,107310.0,107300.0,0.52052718]
[1751168354897,0.87407997,107310.0,107300.0,0.52052718]
[1751168355298,0.87407997,107310.0,107300.0,0.15972718]
[1751168355495,0.87407997,107310.0,107300.0,0.52052718]
[1751168357995,0.87407997,107310.0,107300.0,0.45680009]
[1751168358396,0.90527997,107310.0,107300.0,0.45680009]
[1751168359896,0.90527997,107310.0,107300.0,0.42600009]
[1751168361604,0.90527997,107310.0,107300.0,0.44008811]
[1751168363905,0.90527997,107310.0,107300.0,0.42600009]
[1751168364209,0.90527997,107310.0,107300.0,0.38875656]
[1751168365602,0.90527997,107310.0,107300.0,0.02795656]
[1751168367309,0.1490627,107300.0,107290.0,0.5381455]
[1751168367508,1.48248441,107300.0,107290.0,0.5381455]
[1751168368606,1.48248441,107300.0,107290.0,0.5391455]
[1751168369309,1.22486384,107300.0,107290.0,0.5391455]
[1751168369805,1.22486384,107300.0,107290.0,0.5401455]
[1751168370202,1.48248441,107300.0,107290.0,0.5090455]
[1751168370402,1.54448441,107300.0,107290.0,0.5090455]
[1751168371410,1.54448441,107300.0,107290.0,0.4767455]
[1751168371908,1.28686384,107300.0,107290.0,0.4767455]
[1751168374005,1.54448441,107300.0,107290.0,0.4767455]
[1751168374204,1.57608441,107300.0,107290.0,0.4441455]
[1751168374407,1.57608441,107300.0,107290.0,0.4289321]
[1751168377216,1.57608441,107300.0,107290.0,0.44318402]
[1751168384321,1.57608441,107300.0,107290.0,0.08238402]
[1751168384521,1.57608441,107300.0,107290.0,0.04514049]
[1751168385719,1.57608441,107300.0,107290.0,0.03088857]
[1751168386219,1.57608441,107300.0,107290.0,0.0681321]
[1751168386717,1.57608441,107300.0,107290.0,0.03088857]
[1751168388618,1.57608441,107300.0,107290.0,0.00293201]
[1751168390320,1.57608441,107300.0,107290.0,0.03403201]
[1751168391922,1.57608441,107300.0,107290.0,0.00293201]
[1751168392122,1.57608441,107300.0,107290.0,0.01728545]
[1751168393021,1.57608441,107300.0,107290.0,0.00293201]
[1751168396529,1.57608441,107300.0,107290.0,0.03088857]
[1751168406136,1.57608441,107300.0,107290.0,0.00293201]
[1751168417853,1.01552441,107300.0,107290.0,0.00293201]
[1751168418047,1.70472441,107300.0,107290.0,0.00293201]
[1751168418243,1.01552441,107300.0,107290.0,0.00293201]
[1751168418448,1.70476441,107300.0,107290.0,0.00293201]
[1751168419450,1.01552441,107300.0,107290.0,0.00293201]
[1751168419654,1.70476441,107300.0,107290.0,0.00293201]
[1751168420654,1.01552441,107300.0,107290.0,0.00293201]
[1751168420956,1.70472441,107300.0,107290.0,0.00293201]
[1751168421953,1.70476441,107300.0,107290.0,0.00293201]
[1751168432368,1.77927519,107300.0,107290.0,0.00293201]
[1751168436467,1.70476441,107300.0,107290.0,0.00293201]
[1751168439975,1.01552441,107300.0,107290.0,0.00293201]
[1751168440276,1.35410384,107300.0,107290.0,0.00293201]
[1751168440470,1.35410384,107300.0,107290.0,0.09623201]
[1751168440767,1.61172441,107300.0,107290.0,0.09623201]
[1751168441271,1.61172441,107300.0,107290.0,0.12418857]
[1751168442166,1.61176441,107300.0,107290.0,0.12418857]
[1751168442366,1.67386441,107300.0,107290.0,0.12418857]
[1751168444566,1.67386441,107300.0,107290.0,0.04760259]
[1751168454277,1.67386441,107300.0,107290.0,0.03323201]
[1751168454482,1.67386441,107300.0,107290.0,0.06118857]
[1751168463985,1.67386441,107300.0,107290.0,0.04758884]
[1751168464583,1.69049751,107300.0,107290.0,0.04758884]
[1751168467293,1.69049751,107300.0,107290.0,0.03323201]
[1751168468297,1.69049751,107300.0,107290.0,0.04759006]
[1751168468493,1.69049751,107300.0,107290.0,0.03323201]
[1751168469295,1.69049751,107300.0,107290.0,0.04759065]
[1751168469498,1.72199751,107300.0,107290.0,0.07554721]
[1751168471397,1.72199751,107300.0,107290.0,0.04759065]
[1751168473901,1.72199751,107300.0,107290.0,0.03323201]
[1751168475000,1.72199751,107300.0,107290.0,0.04759228]
[1751168484018,1.72199751,107300.0,107290.0,0.03323201]
[1751168492723,1.72111751,107300.0,107290.0,0.00293201]
[1751168494328,1.03215751,107300.0,107290.0,0.00293201]
[1751168494526,1.72111751,107300.0,107290.0,0.00293201]
[1751168495431,1.03215751,107300.0,107290.0,0.00293201]
[1751168495823,1.72111751,107300.0,107290.0,0.00293201]
[1751168496623,1.03215751,107300.0,107290.0,0.00293201]
[1751168497228,1.72107751,107300.0,107290.0,0.00293201]
[1751168497430,1.03215751,107300.0,107290.0,0.00293201]
[1751168497630,1.72107751,107300.0,107290.0,0.00293201]
[1751168502232,1.72107751,107300.0,107290.0,0.01729632]
[1751168512036,1.72107751,107300.0,107290.0,0.00293201]
[1751168517243,1.72107751,107300.0,107290.0,0.01729614]
[1751168520445,0.9482158,107300.0,107290.0,0.01729614]
[1751168520645,1.72107751,107300.0,107290.0,0.01729614]
[1751168525744,1.72107751,107300.0,107290.0,0.00293201]
[1751168526755,1.72107751,107300.0,107290.0,0.03583201]
[1751168542879,1.72107751,107300.0,107290.0,0.00293201]
[1751168550280,0.9482158,107300.0,107290.0,0.00293201]
[1751168550586,1.72107751,107300.0,107290.0,0.00293201]
[1751168566598,2.15638829,107300.0,107290.0,0.00293201]
[1751168570301,1.79558829,107300.0,107290.0,0.00293201]
[1751168570601,2.15638829,107300.0,107290.0,0.00293201]
[1751168573598,1.46746829,107300.0,107290.0,0.00293201]
[1751168573799,2.15750829,107300.0,107290.0,0.00293201]
[1751168576506,0.66431774,107290.0,107280.0,0.3913]
[1751168576698,0.72741774,107290.0,107280.0,0.45650009]
[1751168576898,0.75841774,107290.0,107280.0,0.45650009]
[1751168577308,0.75841774,107290.0,107280.0,0.47092054]
[1751168577806,0.75841774,107290.0,107280.0,0.47292054]
[1751168578304,0.75841774,107290.0,107280.0,0.43867701]
[1751168585915,1.01603831,107290.0,107280.0,0.04737701]
[1751168586103,1.37683831,107290.0,107280.0,0.04737701]
[1751168586310,1.37683831,107290.0,107280.0,0.03295656]
[1751168586509,1.37683831,107290.0,107280.0,0.005]
[1751168592118,0.6039766,107290.0,107280.0,0.005]
[1751168592319,1.37683831,107290.0,107280.0,0.005]
[1751168598122,1.01603831,107290.0,107280.0,0.005]
[1751168598324,1.37683831,107290.0,107280.0,0.005]
[1751168600929,1.01603831,107290.0,107280.0,0.005]
[1751168601128,1.37683831,107290.0,107280.0,0.005]
[1751168605032,1.11921774,107290.0,107280.0,0.005]
[1751168611641,0.75841774,107290.0,107280.0,0.005]
[1751168611839,1.11921774,107290.0,107280.0,0.005]
[1751168616634,1.19372852,107290.0,107280.0,0.005]
[1751168617238,0.83292852,107290.0,107280.0,0.005]
[1751168617538,1.19372852,107290.0,107280.0,0.005]
[1751168622043,0.83292852,107290.0,107280.0,0.005]
[1751168622235,1.19372852,107290.0,107280.0,0.005]
[1751168623343,1.88600852,107290.0,107280.0,0.036]
[1751168625650,1.52520852,107290.0,107280.0,0.036]